bitfinex/quotes_ETHUSD_20251010
["timestamp","ask_amount","ask_price","bid_price","bid_amount"]
[1760066856678,0.6336,4369.5,4369.4,0.43010001]
[1760066856883,2.29017615,4370.3,4369.4,0.43010001]
[1760066857075,0.6336,4370.1,4369.5,0.02288591]
[1760066857302,5.0104,4370.2,4369.5,0.13728591]
[1760066857303,0.6336,4369.9,4369.5,0.13728591]
[1760066857613,0.002,4370.3,4370.0,2.28831062]
[1760066857773,6.463,4370.2,4370.1,0.45298277]
[1760066858095,0.6336,4370.1,4370.0,2.28831705]
[1760066858499,0.6336,4370.1,4370.0,2.71841705]
[1760066858699,6.463,4370.2,4370.0,2.71841705]
[1760066858905,0.6336,4370.1,4370.0,2.71841705]
[1760066859279,6.463,4370.2,4370.0,2.71841705]
[1760066859280,6.463,4370.2,4370.1,2.28827715]
[1760066859508,0.002,4370.3,4370.2,2.28822479]
[1760066859710,6.465,4370.3,4370.2,2.71832479]
[1760066860202,6.465,4370.3,4370.2,2.74120703]
[1760066860366,6.465,4370.3,4370.2,4.66120703]
[1760066860566,6.465,4370.3,4370.2,4.63832479]
[1760066860788,6.465,4370.3,4370.2,2.3501]
[1760066861393,6.465,4370.3,4370.2,4.63832479]
[1760066862603,6.465,4370.3,4370.2,1.92]
[1760066862604,0.002,4370.3,4370.2,1.92]
[1760066864702,0.002,4370.3,4370.2,4.20822479]
[1760066864904,0.002,4370.3,4370.2,4.63832479]
[1760066865572,0.002,4370.3,4370.2,4.66120703]
[1760066866472,0.002,4370.3,4370.2,4.63832479]
[1760066866693,0.002,4370.3,4370.2,1.92]
[1760066866868,0.002,4370.3,4370.2,4.20822479]
[1760066867072,0.002,4370.3,4370.2,4.64522479]
[1760066867710,0.002,4370.3,4370.2,4.75962479]
[1760066870382,0.002,4370.8,4370.7,2.28796302]
[1760066870589,0.002,4370.8,4370.7,19.33318153]
[1760066870888,0.002,4370.8,4370.7,19.8609019]
[1760066871307,2.38,4372.3,4370.9,2.28785833]
[1760066871506,0.15,4372.1,4371.8,0.1136]
[1760066871713,2.2867999,4373.0,4371.8,0.1136]
[1760066871714,0.2149,4373.8,4371.8,2.40098734]
[1760066871937,2.29,4373.0,4371.8,4.78086121]
[1760066872115,2.29,4373.0,4371.8,4.75798734]
[1760066872709,0.6386,4372.9,4371.8,4.75798734]
[1760066874807,0.049,4372.9,4371.8,4.75798734]
[1760066878735,0.049,4372.9,4371.8,4.32098734]
[1760066878939,0.049,4372.9,4371.8,11.25238734]
[1760066879335,0.049,4372.9,4371.8,2.507]
[1760066879336,0.6336,4372.6,4371.8,2.507]
[1760066879705,0.6336,4372.6,4371.8,4.79438734]
[1760066880117,0.6336,4372.6,4371.8,2.507]
[1760066880322,0.6336,4372.7,4371.8,2.0336]
[1760066880528,0.6336,4372.4,4371.8,2.0336]
[1760066880846,1.0774,4371.9,4371.8,0.1136]
[1760066881142,1.0774,4371.9,4371.3,0.1136]
[1760066881143,0.6336,4371.6,4371.3,0.1136]
[1760066881844,0.6336,4371.4,4371.0,0.1136]
[1760066882514,1.0724,4371.3,4371.0,0.1136]
[1760066883132,0.6336,4371.3,4371.0,0.1136]
[1760066883726,0.6336,4371.1,4371.0,0.1136]
[1760066884309,0.4388,4371.1,4370.6,0.001]
[1760066884530,0.4388,4371.0,4370.7,0.1136]
[1760066885019,0.6336,4371.3,4370.7,0.1136]
[1760066885221,2.92125387,4371.3,4370.7,0.1136]
[1760066885424,0.6336,4371.1,4370.7,0.1136]
[1760066885836,0.6336,4371.3,4370.7,0.1136]
[1760066886357,0.6336,4371.1,4370.8,0.4734]
[1760066886650,0.6336,4371.1,4371.0,0.1136]
[1760066887056,0.6336,4371.2,4371.0,0.1136]
[1760066887423,0.6336,4371.3,4371.0,0.587]
[1760066888027,0.6336,4371.3,4371.1,0.02287753]
[1760066888227,0.6336,4371.3,4371.0,0.587]
[1760066888626,0.6336,4371.3,4371.1,0.02287753]
[1760066889654,0.6336,4371.3,4371.1,0.49627753]
[1760066889822,6.46,4371.3,4371.1,0.49627753]
[1760066890032,6.46,4371.3,4371.2,0.1136]
[1760066890965,0.6336,4371.5,4371.2,0.587]
[1760066891450,0.007,4371.9,4371.3,0.49627648]
[1760066891622,0.6336,4371.8,4371.3,0.49627648]
[1760066891951,6.467,4371.9,4371.3,0.49627648]
[1760066891952,6.467,4371.9,4371.7,0.1136]
[1760066892159,0.6336,4371.8,4371.7,0.1136]
[1760066892531,0.6336,4371.8,4371.7,0.13647439]
[1760066892726,0.6336,4371.8,4371.7,0.60987439]
[1760066892950,0.6336,4371.8,4371.7,2.89731405]
[1760066894229,6.467,4371.9,4371.8,2.28738734]
[1760066894526,0.007,4371.9,4371.8,2.76078734]
[1760066897467,0.007,4371.9,4371.8,4.70366121]
[1760066897679,0.007,4371.9,4371.8,4.68078734]
[1760066901991,0.002,4372.4,4372.2,2.28717807]
[1760066902154,0.002,4372.4,4372.3,10.82242576]
[1760066902486,0.007812,4372.5,4372.4,4.20707346]
[1760066902705,0.005,4372.9,4372.4,4.20707346]
[1760066902706,0.005,4372.9,4372.8,2.28686425]
[1760066902861,0.005,4373.9,4373.6,16.96160756]
[1760066903067,0.005,4373.9,4373.7,1.92]
[1760066903262,0.005,4373.9,4373.8,2.28634139]
[1760066903466,0.005,4373.9,4373.8,4.7026048]
[1760066903669,0.005,4373.9,4373.8,4.67974139]
[1760066903852,0.005,4374.9,4373.9,1.92]
[1760066904065,0.005,4374.9,4374.8,19.03930098]
[1760066904285,0.005,4374.9,4374.8,25.49730098]
[1760066904605,0.005,4374.9,4374.8,28.34970098]
[1760066904766,0.005,4375.9,4375.7,16.96053082]
[1760066905118,0.005,4375.9,4375.7,18.88053082]
[1760066905498,0.005,4375.9,4375.7,19.8071891]
[1760066906361,0.005,4375.9,4375.8,1.92]
[1760066906682,0.005,4375.9,4375.8,2.3934]
[1760066907651,0.005,4375.9,4375.4,2.28549945]
[1760066907852,0.005,4375.9,4375.7,0.4457]
[1760066908084,0.005,4375.9,4375.7,2.3657]
[1760066909056,0.005,4375.9,4375.5,0.453279]
[1760066909287,0.005,4375.9,4375.6,1.92]
[1760066909473,0.005,4375.9,4375.5,0.4457]
[1760066909673,0.005,4375.9,4375.6,1.92]
[1760066909872,0.005,4375.9,4375.1,0.4457]
[1760066910089,0.005,4375.9,4374.8,0.62413035]
[1760066910090,0.005,4375.9,4374.8,0.1583]
[1760066910259,0.6336,4375.5,4374.7,0.968]
[1760066910859,0.6336,4375.6,4374.7,0.968]
[1760066911403,0.6336,4375.6,4374.7,2.888]
[1760066911604,0.6336,4375.6,4374.7,0.968]
[1760066911902,0.005,4375.9,4374.7,0.968]
[1760066911903,0.005,4375.9,4375.2,2.28560933]
[1760066912109,0.6336,4375.7,4374.8,0.4457]
[1760066912671,0.005,4375.9,4374.9,2.28575244]
[1760066912814,0.6336,4375.8,4375.6,0.1136]
[1760066913627,2.29024993,4375.9,4375.6,0.1136]
[1760066913628,0.6386,4375.9,4375.6,0.1136]
[1760066913993,0.005,4375.9,4375.6,0.1136]
[1760066914317,0.005,4375.9,4375.7,0.4457]
[1760066914493,0.005,4375.9,4375.6,0.1136]
[1760066916184,0.6386,4375.9,4375.6,0.1136]
[1760066916388,0.005,4375.9,4375.6,0.1136]
[1760066917527,0.6386,4375.9,4375.6,0.1136]
[1760066917903,0.005,4375.9,4375.6,0.1136]
[1760066918320,0.6386,4375.9,4375.6,0.1136]
[1760066918520,2.92384622,4375.9,4375.6,0.1136]
[1760066918719,0.6336,4375.7,4375.6,0.1136]
[1760066919321,0.6336,4375.8,4375.6,0.1136]
[1760066920145,0.6336,4375.7,4375.6,0.1136]
[1760066920319,0.6336,4375.3,4374.5,0.1583]
[1760066920648,2.91915756,4375.3,4375.2,0.1136]
[1760066920938,3.36545756,4375.3,4375.2,0.1136]
[1760066921497,0.6336,4374.7,4374.1,0.4457]
[1760066921700,0.6336,4375.0,4374.7,0.1136]
[1760066922118,0.6336,4374.9,4374.7,0.1136]
[1760066922326,0.6336,4375.0,4374.7,0.1136]
[1760066922830,6.451,4375.3,4374.5,2.28595388]
[1760066922831,0.6336,4375.2,4374.9,0.1136]
[1760066923616,0.6336,4375.0,4374.9,0.1136]
[1760066923929,0.6336,4375.2,4374.9,0.1136]
[1760066924239,2.28566204,4375.1,4374.9,0.1136]
[1760066924439,2.91931428,4375.0,4374.9,0.1136]
[1760066925125,0.6336,4375.0,4374.9,0.1136]
[1760066925622,0.6336,4375.1,4374.9,0.1136]
[1760066925942,0.6336,4375.0,4374.9,0.1136]
[1760066926540,0.6356,4375.2,4374.9,0.1136]
[1760066926739,0.6336,4375.0,4374.9,0.1136]
[1760066927038,0.6336,4375.0,4373.8,2.0783]
[1760066927200,0.6336,4375.0,4374.5,0.1136]
[1760066927402,0.6336,4374.8,4374.5,0.1136]
[1760066927602,0.6336,4374.6,4374.5,0.1136]
[1760066929025,0.002,4375.2,4374.5,0.1136]
[1760066929211,0.002,4375.2,4374.5,2.7234589]
[1760066929417,0.002,4375.2,4375.1,0.1136]
[1760066930022,0.002,4375.2,4375.1,0.5511]
[1760066931142,0.002,4375.2,4375.1,0.57395662]
[1760066931437,0.002,4375.2,4375.1,2.85961866]
[1760066931638,0.002,4375.2,4375.1,0.5511]
[1760066932636,0.002,4375.2,4375.1,2.85961866]
[1760066933820,0.002,4375.2,4375.1,2.83676204]
[1760066934438,0.002,4375.2,4375.1,0.5511]
[1760066936205,0.002,4375.2,4375.1,0.1136]
[1760066938659,2.9212098,4375.2,4375.1,0.1136]
[1760066938819,0.6356,4375.2,4375.1,0.1136]
[1760066940148,0.6356,4375.2,4374.3,0.4283]
[1760066940149,0.6336,4375.1,4374.3,0.4283]
[1760066940351,0.6336,4375.1,4374.9,0.1136]
[1760066940553,0.6356,4375.2,4374.9,0.1136]
[1760066940955,0.6336,4375.1,4374.9,0.1136]
[1760066942466,0.002,4375.2,4375.0,0.02285714]
[1760066942762,0.002,4375.2,4375.0,0.4283]
[1760066942963,0.002,4375.2,4375.1,0.1136]
[1760066943267,0.002,4375.2,4375.1,0.5419]
[1760066943468,0.002,4375.2,4375.1,0.56475662]
[1760066944963,0.002,4375.2,4375.1,4.77041866]
[1760066945134,0.002,4375.2,4375.1,4.74756204]
[1760066946770,0.002,4375.8,4375.7,2.28534862]
[1760066946959,0.002,4375.8,4375.7,25.8123843]
[1760066947271,0.002,4375.8,4375.7,28.25143082]
[1760066950279,0.6386,4377.9,4375.9,2.28524417]
[1760066950280,0.005,4377.9,4375.9,2.28524417]
[1760066950439,0.005,4377.9,4376.8,16.7078822]
[1760066950637,0.005,4377.9,4376.8,27.93425646]
[1760066950846,0.005,4377.9,4376.8,28.36255646]
[1760066951272,1e-08,4376.9,4376.8,28.36255646]
[1760066951773,1e-08,4376.9,4376.8,28.81163449]
[1760066951977,0.005,4377.9,4377.8,2.28425236]
[1760066952269,2.28337878,4379.5,4378.5,2.28388212]
[1760066952436,2.418,4379.7,4378.3,1.92]
[1760066952637,0.6336,4379.1,4378.3,1.92]
[1760066952852,0.4377,4379.6,4378.3,1.92]
[1760066953056,2.7210258,4379.6,4378.3,4.20398814]
[1760066953374,0.6336,4379.1,4377.7,0.4283]
[1760066953580,2.418,4379.7,4377.5,2.71269671]
[1760066953581,2.91748948,4378.5,4377.5,2.71269671]
[1760066953942,0.53,4378.8,4377.5,0.4283]
[1760066954140,0.6336,4378.4,4377.5,0.4283]
[1760066955046,2.91753131,4378.5,4377.5,0.4283]
[1760066955369,0.6336,4378.3,4377.5,0.4283]
[1760066955877,0.6336,4378.3,4377.5,2.71270818]
[1760066956076,0.6336,4378.5,4377.6,2.30720028]
[1760066956586,0.6336,4378.7,4377.6,2.30720028]
[1760066956746,0.6336,4378.7,4377.7,0.4283]
[1760066956946,0.6336,4378.5,4377.8,1.92]
[1760066957258,0.6336,4378.5,4377.3,1.92]
[1760066957444,0.53,4378.8,4377.0,2.28465635]
[1760066957445,0.6336,4378.3,4377.1,0.4283]
[1760066957651,0.4377,4378.4,4377.1,0.4283]
[1760066957652,0.6336,4378.0,4377.1,0.4283]
[1760066958355,0.6336,4378.0,4376.8,0.56177803]
[1760066958356,0.6336,4377.9,4376.8,0.99007803]
[1760066958740,2.28432063,4377.7,4376.9,1.92]
[1760066958939,0.4377,4377.8,4376.8,0.44907803]
[1760066959181,2.28440557,4377.6,4376.5,2.3975874]
[1760066959343,0.6336,4377.5,4376.5,2.0327]
[1760066959544,0.6336,4377.5,4376.7,2.28477976]
[1760066959745,0.6336,4377.7,4376.8,2.28474938]
[1760066959970,0.6336,4377.7,4376.8,4.20474938]
[1760066960144,0.6336,4377.7,4376.9,4.20470977]
[1760066960361,0.6336,4377.7,4376.9,2.28470977]
[1760066960685,0.4377,4379.2,4377.6,2.2843183]
[1760066960856,2.28389479,4378.5,4377.6,0.4283]
[1760066961054,0.6336,4378.3,4377.3,1.92]
[1760066961286,2.28394527,4378.4,4376.7,15.04882941]
[1760066961287,4.111,4378.4,4377.8,2.28424793]
[1760066961515,2.2837334,4378.8,4377.9,0.022842]
[1760066961677,2.2835221,4379.2,4378.1,2.28404368]
[1760066961865,2.2835221,4379.2,4377.9,0.4283]
[1760066961866,0.4377,4379.3,4378.2,2.28403584]
[1760066962073,6.46,4379.2,4378.8,0.1136]
[1760066962271,2.72126811,4379.2,4378.8,0.1136]
[1760066962468,8.823,4379.1,4378.8,0.1136]
[1760066962668,0.6336,4379.0,4378.8,0.1136]
[1760066962967,7.0796,4378.9,4378.8,0.1136]
[1760066963191,0.6336,4378.9,4378.8,0.1136]
[1760066963367,7.0796,4378.9,4378.8,0.1136]
[1760066965329,0.6336,4378.8,4377.0,2.433]
[1760066965531,2.9175947,4378.3,4377.1,0.4283]
[1760066966042,0.1136,4379.0,4378.2,0.1136]
[1760066966194,2.9174695,4378.6,4378.2,0.1136]
[1760066966393,0.4377,4378.6,4378.2,0.1136]
[1760066966597,0.6336,4378.8,4378.2,0.1136]
[1760066966598,0.6336,4378.5,4378.2,0.1136]
[1760066967046,0.4377,4378.9,4378.2,0.1136]
[1760066967047,0.6336,4378.6,4378.2,0.1136]
[1760066967326,2.91744042,4378.6,4378.2,0.1136]
[1760066967737,0.6336,4378.6,4378.2,0.1136]
[1760066968708,0.6336,4378.4,4378.2,0.1136]
[1760066969091,6.446,4378.7,4378.3,0.4672]
[1760066969092,0.6336,4378.6,4378.3,0.4672]
[1760066969694,0.6336,4378.5,4378.0,2.75134611]
[1760066969794,0.002,4379.5,4378.1,0.49004095]
[1760066970122,0.6336,4379.4,4378.4,2.2839275]
[1760066970323,0.6336,4379.4,4378.5,2.75106869]
[1760066970515,0.6336,4379.4,4378.6,2.28382838]
[1760066970865,0.6336,4379.4,4378.7,2.28377593]
[1760066970995,6.391,4379.5,4378.8,2.28372136]
[1760066970996,6.453,4379.5,4378.8,2.28372136]
[1760066971201,0.6336,4379.4,4378.9,0.02283678]
[1760066971628,0.6336,4379.4,4378.9,0.49003678]
[1760066972019,0.6336,4379.4,4379.0,0.4672]
[1760066972334,0.6336,4379.4,4378.9,0.02283678]
[1760066972335,0.002,4379.5,4379.1,0.49003574]
[1760066972508,0.002,4379.5,4379.2,0.4672]
[1760066972702,0.002,4379.5,4379.3,0.02283469]
[1760066972899,0.002,4379.5,4379.4,1.92]
[1760066973099,0.002,4379.5,4379.4,4.20341781]
[1760066973334,0.002,4379.5,4379.4,4.67061781]
[1760066976630,0.002,4379.5,4378.6,0.4672]
[1760066976835,0.002,4379.5,4379.4,0.4672]
[1760066977206,0.002,4379.5,4378.6,0.38]
[1760066977207,0.002,4379.5,4378.7,2.28378285]
[1760066977434,0.002,4379.5,4378.9,0.4672]
[1760066978009,0.002,4379.5,4379.1,2.28356742]
[1760066978209,0.002,4379.5,4379.2,2.28352151]
[1760066978436,0.002,4379.5,4379.1,0.4672]
[1760066978638,0.002,4379.5,4379.1,2.75076787]
[1760066978942,0.002,4379.5,4379.2,0.4672]
[1760066979640,0.002,4379.5,4379.4,0.1136]
[1760066979810,0.002,4379.5,4379.4,2.39701781]
[1760066980235,0.002,4379.5,4379.4,0.1136]
[1760066983362,0.002,4379.5,4379.4,0.5808]
[1760066983562,0.002,4379.5,4379.4,0.60363417]
[1760066984073,0.002,4379.5,4379.4,0.5808]
[1760066984275,0.002,4379.5,4379.4,0.13643417]
[1760066985474,0.002,4379.5,4379.4,0.60363417]
[1760066986461,0.002,4379.5,4379.4,2.88705198]
[1760066987186,0.002,4379.5,4379.4,0.60363417]
[1760066987480,0.002,4379.5,4379.4,2.88705198]
[1760066987677,0.002,4379.5,4379.4,2.41985198]
[1760066987876,0.002,4379.5,4379.4,2.85795198]
[1760066988044,0.002,4379.5,4379.4,0.57453417]
[1760066988641,0.002,4379.5,4379.4,2.83511781]
[1760066988846,0.002,4379.5,4379.4,2.85795198]
[1760066989052,0.002,4379.5,4379.4,2.83511781]
[1760066989474,0.002,4379.5,4379.4,0.5517]
[1760066990045,0.002,4379.5,4379.4,0.1136]
[1760066991370,0.002,4379.5,4379.4,2.83511781]
[1760066991584,0.002,4379.5,4379.4,0.5517]
[1760066991786,0.002,4379.5,4379.4,2.83511781]
[1760066992449,0.002,4379.5,4379.4,0.5517]
[1760066993049,0.002,4379.5,4379.4,2.83511781]
[1760066993477,0.002,4379.5,4379.4,2.85795198]
[1760066994456,0.002,4379.5,4379.4,2.39701781]
[1760066994789,0.002,4379.5,4379.4,2.83511781]
[1760066994954,0.002,4379.5,4379.4,2.85795198]
[1760066995149,0.002,4379.5,4379.4,2.83511781]
[1760066998379,0.002,4379.5,4379.4,2.85795198]
[1760066999474,0.002,4379.5,4379.4,2.83511781]
[1760067000693,0.002,4379.5,4379.4,2.85795198]
[1760067001057,0.002,4379.5,4379.4,4.77795198]
[1760067001366,0.002,4379.5,4379.4,4.71431781]
[1760067001566,0.002,4379.5,4379.4,4.80571953]
[1760067003803,0.005,4379.9,4379.8,2.28320927]
[1760067003993,0.005,4380.9,4379.8,2.28320927]
[1760067003994,0.005,4380.9,4380.8,2.28268809]
[1760067004602,0.005,4380.9,4380.8,2.77151497]
[1760067005201,0.005,4380.9,4380.8,2.74868809]
[1760067005504,0.005,4380.9,4380.8,7.62517691]
[1760067007502,0.005,4380.9,4380.8,2.74868809]
[1760067007798,0.005,4380.9,4380.8,2.77151497]
[1760067009201,0.005,4380.9,4380.8,2.74868809]
[1760067010199,0.005,4380.9,4380.8,0.466]
[1760067010403,0.005,4380.9,4380.3,0.1583]
[1760067010571,0.005,4380.9,4380.0,0.466]
[1760067011070,0.005,4380.9,4380.8,0.1136]
[1760067011475,0.005,4380.9,4380.3,15.90936797]
[1760067011677,0.005,4380.9,4380.8,2.28268809]
[1760067012018,0.005,4380.9,4380.8,2.74868809]
[1760067012781,0.005,4380.9,4380.8,2.86288642]
[1760067012986,0.005,4380.9,4380.8,2.84005954]
[1760067013176,1e-08,4380.9,4380.8,2.84005954]
[1760067013382,0.005,4381.9,4380.9,4.20263598]
[1760067013583,0.005,4381.9,4381.8,2.28216714]
[1760067013879,0.005,4381.9,4381.8,8.74598881]
[1760067014075,0.005,4381.9,4381.8,9.18916714]
[1760067014935,0.005,4381.9,4381.8,0.466]
[1760067015094,0.005,4381.9,4381.8,6.907]
[1760067015297,0.005,4381.9,4381.8,9.18916714]
[1760067015514,0.005,4381.9,4381.8,2.74816714]
[1760067015697,0.005,4381.9,4381.8,9.18916714]
[1760067016090,0.005,4381.9,4381.8,6.907]
[1760067016315,0.005,4381.9,4381.8,9.18916714]
[1760067017843,0.005,4381.9,4380.9,1.92]
[1760067018046,0.005,4381.9,4381.7,2.28218154]
[1760067018229,0.005,4381.9,4381.5,6.441]
[1760067018434,0.005,4381.9,4381.8,2.30498881]
[1760067018631,0.005,4381.9,4381.8,8.74598881]
[1760067018939,0.005,4381.9,4381.8,6.907]
[1760067019144,0.005,4381.9,4381.8,9.18916714]
[1760067020445,0.005,4381.9,4381.8,26.17403854]
[1760067021528,0.005,4381.9,4381.8,26.28763854]
[1760067022510,0.005,4381.9,4381.8,26.37898536]
[1760067022812,0.005,4381.9,4381.8,2.95311396]
[1760067023044,0.005,4381.9,4381.8,2.86176714]
[1760067023248,0.005,4381.9,4381.8,9.30176714]
[1760067026417,0.005,4381.9,4381.8,23.91263854]
[1760067027048,0.015259,4382.3,4382.2,2.28195883]
[1760067027250,0.015259,4382.3,4382.2,8.72095883]
[1760067027568,2.28105348,4384.0,4382.2,15.35039065]
[1760067027868,2.28097095,4384.1,4382.9,6.07179065]
[1760067028174,0.6336,4384.2,4383.3,2.28133829]
[1760067028175,2.28094888,4384.2,4383.3,2.28133829]
[1760067028455,2.28097402,4384.1,4383.4,0.4656]
[1760067028858,0.6336,4384.8,4383.4,0.4656]
[1760067028859,0.005,4384.9,4384.0,6.07179065]
[1760067029067,0.005,4384.9,4384.8,6.20729065]
[1760067029262,0.005,4384.9,4384.8,17.31449637]
[1760067029474,0.005,4386.9,4385.5,8.35203235]
[1760067029644,0.005,4386.9,4385.5,14.79403235]
[1760067029842,0.005,4386.9,4385.6,4.20017297]
[1760067030156,0.005,4386.9,4385.6,2.3856]
[1760067030488,0.005,4386.9,4386.8,8.35135662]
[1760067030782,0.005,4387.9,4386.8,12.51579065]
[1760067030991,0.005,4387.9,4387.8,6.07179065]
[1760067031274,0.005,4387.9,4387.8,12.51579065]
[1760067031561,0.005,4387.9,4387.8,8.8296]
[1760067031764,0.005,4387.9,4387.8,0.4656]
[1760067031963,0.005,4387.9,4386.7,1.92]
[1760067032266,0.005,4387.9,4387.2,2.27931636]
[1760067032431,0.005,4387.9,4386.8,0.4656]
[1760067032636,0.005,4387.9,4386.9,6.443]
[1760067032836,0.005,4387.9,4386.9,6.9086]
[1760067033057,0.005,4387.9,4386.9,0.4656]
[1760067033260,0.005,4387.9,4386.6,0.472]
[1760067033261,2.28401767,4387.9,4386.6,0.472]
[1760067033763,2.28401767,4387.9,4386.4,0.4656]
[1760067033764,0.005,4387.9,4386.4,0.4656]
[1760067033931,0.4315,4387.8,4386.5,0.497]
[1760067034132,0.856,4387.9,4386.6,2.40839669]
[1760067034133,0.005,4387.9,4386.6,2.40839669]
[1760067034361,0.005,4387.9,4387.5,2.27919078]
[1760067034666,0.005,4387.9,4387.6,2.30193409]
[1760067034869,0.005,4387.9,4387.6,0.4883915]
[1760067035044,0.005,4387.9,4387.3,0.4656]
[1760067035247,0.005,4387.9,4387.6,0.4656]
[1760067035449,0.005,4387.9,4387.7,2.30187942]
[1760067035850,0.005,4387.9,4387.8,0.4656]
[1760067037387,0.005,4387.9,4387.8,0.48839046]
[1760067037686,0.005,4387.9,4387.8,0.5792]
[1760067038071,0.005,4387.9,4387.8,0.1136]
[1760067038279,0.005,4387.9,4387.8,0.5792]
[1760067038677,0.005,4387.9,4387.8,0.1136]
[1760067039189,0.005,4387.9,4387.2,3.36934121]
[1760067039353,0.005,4387.9,4387.0,0.4656]
[1760067039554,0.005,4387.9,4386.5,0.4656]
[1760067039796,2.27911223,4387.7,4386.5,2.74531686]
[1760067040087,0.005,4387.9,4386.6,2.27965895]
[1760067040321,2.27911574,4387.7,4386.5,0.4656]
[1760067040607,2.27914692,4387.7,4386.4,3.698]
[1760067040887,2.27914692,4387.7,4386.7,2.27961334]
[1760067041390,0.005,4387.9,4387.2,2.27935097]
[1760067041591,0.005,4387.9,4386.8,0.48839565]
[1760067041592,0.005,4387.9,4387.3,0.02279306]
[1760067041801,0.005,4387.9,4387.5,2.27919509]
[1760067042092,0.005,4387.9,4387.6,0.4656]
[1760067042264,0.005,4387.9,4387.1,2.27940259]
[1760067042470,0.005,4387.9,4387.2,2.27935769]
[1760067042868,0.005,4387.9,4387.3,0.02279306]
[1760067043180,0.005,4387.9,4386.6,0.4656]
[1760067043181,0.005,4387.9,4387.0,0.4656]
[1760067043390,0.005,4387.9,4387.0,2.74504003]
[1760067043555,0.005,4387.9,4387.2,2.27935813]
[1760067043762,0.005,4387.9,4387.3,0.02279306]
[1760067043995,0.005,4387.9,4387.4,0.48839254]
[1760067044200,0.005,4387.9,4387.4,0.02279254]
[1760067044400,0.005,4387.9,4387.0,2.74506042]
[1760067044699,0.005,4387.9,4386.7,0.501]
[1760067044898,2.27904644,4387.8,4386.8,1.92]
[1760067045085,0.005,4387.9,4386.5,1.14999945]
[1760067045393,0.005,4387.9,4386.5,2.96411706]
[1760067045394,2.27920945,4387.5,4386.5,2.96411706]
[1760067045597,0.2224,4387.9,4386.5,2.96411706]
[1760067045598,0.6336,4387.7,4386.5,0.68439945]
[1760067045802,2.27930397,4387.4,4386.5,0.68439945]
[1760067045986,0.005,4387.9,4386.5,1.14999945]
[1760067046184,0.005,4387.9,4386.2,1.92]
[1760067046185,0.005,4387.9,4386.6,0.4509]
[1760067046498,0.005,4387.9,4387.0,2.27942714]
[1760067046801,0.005,4387.9,4387.1,2.27939621]
[1760067047163,0.005,4387.9,4387.2,0.4509]
[1760067047363,0.005,4387.9,4386.6,0.4509]
[1760067047570,2.27904644,4387.8,4386.7,2.27961009]
[1760067047764,2.27904644,4387.8,4386.6,0.4509]
[1760067048016,2.27904644,4387.8,4386.8,2.279542]
[1760067048222,2.27904644,4387.8,4386.6,0.4509]
[1760067048223,2.27919871,4387.6,4386.6,0.4509]
[1760067048524,2.27919871,4387.6,4386.0,0.4509]
[1760067048525,0.6336,4387.5,4386.0,0.4509]
[1760067048674,0.4546,4387.4,4385.9,1.92]
[1760067048869,0.4546,4387.4,4386.2,2.27987107]
[1760067048870,0.6336,4387.3,4386.2,2.27987107]
[1760067049120,2.27939868,4387.2,4386.0,0.4509]
[1760067049321,2.91299868,4387.2,4387.1,0.1136]
[1760067049528,0.6336,4387.2,4387.1,0.1136]
[1760067050919,0.5682,4387.8,4387.1,0.5645]
[1760067050920,0.6336,4387.7,4387.1,0.5645]
[1760067051067,6.435,4387.6,4387.2,0.02279358]
[1760067051270,6.435,4387.6,4387.4,0.1136]
[1760067051705,2.27920227,4387.5,4387.4,0.1136]
[1760067052107,6.435,4387.6,4386.8,0.001]
[1760067052108,0.6336,4387.4,4386.8,0.001]
[1760067052295,2.27945796,4387.1,4387.0,0.1136]
[1760067052698,2.913114,4386.9,4386.8,0.001]
[1760067053016,11.719114,4386.9,4386.8,0.001]
[1760067053185,12.173714,4386.9,4386.8,0.001]
[1760067054187,3.367714,4386.9,4386.8,0.001]
[1760067054586,12.174714,4386.9,4386.8,0.001]
[1760067054797,9.803714,4386.9,4386.8,0.001]
[1760067055004,12.174714,4386.9,4386.8,0.001]
[1760067056313,3.367714,4386.9,4386.8,0.001]
[1760067056486,12.182714,4386.9,4386.8,0.001]
[1760067058212,12.67199459,4386.9,4386.8,0.001]
[1760067058917,12.182714,4386.9,4386.8,0.001]
[1760067059212,3.026714,4386.9,4386.8,0.001]
[1760067059414,11.842714,4386.9,4386.8,0.001]
[1760067059720,12.270414,4386.9,4386.8,0.001]
[1760067060934,2.27919842,4387.6,4386.8,0.4661]
[1760067061079,5.705,4387.5,4386.9,0.02279514]
[1760067061438,5.705,4387.5,4386.9,2.30228191]
[1760067061614,0.005,4387.9,4386.9,0.02279514]
[1760067061785,6.445,4387.7,4387.0,0.4651]
[1760067061986,0.005,4387.9,4387.5,2.27919118]
[1760067062235,0.062,4387.8,4387.6,0.0227915]
[1760067062393,0.062,4387.8,4386.8,0.001]
[1760067062394,0.005,4387.9,4387.8,2.27904644]
[1760067062587,0.005,4387.9,4387.8,2.74414644]
[1760067063329,0.005,4387.9,4387.8,2.7669369]
[1760067063626,0.005,4387.9,4387.8,2.74414644]
[1760067063829,0.005,4387.9,4387.8,2.7669369]
[1760067064329,0.005,4387.9,4387.8,9.18914644]
[1760067064619,0.005,4387.9,4387.8,2.74414644]